[Event "*** Titled Tuesday Blitz"]
[Site "Chess.com"]
[Date "2019.07.02"]
[Round "8"]
[White "shnitez"]
[Black "Bryakin_Mikhail"]
[Result "0-1"]
[WhiteElo "2584"]
[BlackElo "2678"]
[TimeControl "180+2"]
[EndTime "14:48:05 PDT"]
[Termination "Bryakin_Mikhail won by resignation"]

1. e4 {[%clk 0:03:01.9]} 1... c6 {[%clk 0:03:00.3]} 2. Nc3 {[%clk 0:03:01.9]}
2... d5 {[%clk 0:03:02.2]} 3. Nf3 {[%clk 0:03:03.3]} 3... Nf6 {[%clk 0:03:01]}
4. e5 {[%clk 0:03:03.3]} 4... Ne4 {[%clk 0:03:02.4]} 5. Ne2 {[%clk 0:03:04.5]}
5... Qb6 {[%clk 0:03:02.7]} 6. d4 {[%clk 0:03:05]} 6... h6 {[%clk 0:03:04.6]} 7.
Ng3 {[%clk 0:03:05.2]} 7... Nxg3 {[%clk 0:03:05.6]} 8. hxg3 {[%clk 0:03:07.1]}
8... Bf5 {[%clk 0:03:07.4]} 9. Bd3 {[%clk 0:03:03.2]} 9... Bxd3 {[%clk
0:03:07.4]} 10. Qxd3 {[%clk 0:03:05.1]} 10... e6 {[%clk 0:03:09.2]} 11. g4
{[%clk 0:03:01.6]} 11... c5 {[%clk 0:03:10.3]} 12. c3 {[%clk 0:02:55.1]} 12...
Nc6 {[%clk 0:03:11]} 13. a3 {[%clk 0:02:51.6]} 13... cxd4 {[%clk 0:03:08.7]} 14.
cxd4 {[%clk 0:02:52.6]} 14... Rc8 {[%clk 0:03:10.2]} 15. g5 {[%clk 0:02:48.4]}
15... Na5 {[%clk 0:03:08.6]} 16. b4 {[%clk 0:02:31.5]} 16... Nc4 {[%clk
0:03:03.9]} 17. g4 {[%clk 0:02:07.2]} 17... a5 {[%clk 0:02:59.6]} 18. bxa5
{[%clk 0:02:01.7]} 18... Qxa5+ {[%clk 0:03:01.5]} 19. Kf1 {[%clk 0:02:03]} 19...
b5 {[%clk 0:02:46]} 20. Kg2 {[%clk 0:01:56]} 20... b4 {[%clk 0:02:46.9]} 21. Bd2
{[%clk 0:01:37.4]} 21... Nxa3 {[%clk 0:02:42]} 22. Rxa3 {[%clk 0:01:11.1]} 22...
Qxa3 {[%clk 0:02:39.1]} 23. Qb5+ {[%clk 0:01:11.8]} 23... Kd8 {[%clk 0:02:40.5]}
24. Qb6+ {[%clk 0:01:12.6]} 24... Kd7 {[%clk 0:02:40]} 25. Qb5+ {[%clk
0:01:08.2]} 25... Rc6 {[%clk 0:02:40.9]} 26. Qb7+ {[%clk 0:01:00.1]} 26... Rc7
{[%clk 0:02:41.9]} 27. Qb5+ {[%clk 0:01:00.8]} 27... Rc6 {[%clk 0:02:33]} 28.
Qb7+ {[%clk 0:01:01.1]} 28... Rc7 {[%clk 0:02:34.4]} 29. Qb5+ {[%clk 0:01:02]}
29... Kc8 {[%clk 0:02:29.9]} 30. Qe8+ {[%clk 0:01:02.9]} 30... Kb7 {[%clk
0:02:31.4]} 31. Qb5+ {[%clk 0:01:04.8]} 31... Ka7 {[%clk 0:02:32.1]} 32. Rb1
{[%clk 0:00:50.8]} 32... Be7 {[%clk 0:02:05.1]} 33. Bxb4 {[%clk 0:00:46.9]}
33... Qa6 {[%clk 0:02:06.5]} 34. Bxe7 {[%clk 0:00:27.8]} 34... Qxb5 {[%clk
0:02:05.5]} 35. Rxb5 {[%clk 0:00:29.7]} 35... Rxe7 {[%clk 0:02:06.9]} 36. gxh6
{[%clk 0:00:31.1]} 36... Rxh6 {[%clk 0:02:08.2]} 37. Nd2 {[%clk 0:00:25.6]}
37... Rc7 {[%clk 0:02:07.9]} 38. Nb3 {[%clk 0:00:23.7]} 38... Rh4 {[%clk
0:02:09.3]} 39. Kg3 {[%clk 0:00:23.8]} 39... Rh1 {[%clk 0:02:08.8]} 40. Nc5
{[%clk 0:00:19.6]} 40... Rd1 {[%clk 0:02:09.3]} 41. Rb4 {[%clk 0:00:17.4]} 41...
Rc1 {[%clk 0:02:06]} 42. Nb3 {[%clk 0:00:13.3]} 42... R1c4 {[%clk 0:02:06.3]}
43. Rb5 {[%clk 0:00:13.6]} 43... Rb7 {[%clk 0:02:06.9]} 44. Rxb7+ {[%clk
0:00:14.6]} 44... Kxb7 {[%clk 0:02:08.8]} 45. Na5+ {[%clk 0:00:15.6]} 45... Kb6
{[%clk 0:02:09.3]} 46. Nxc4+ {[%clk 0:00:16.8]} 46... dxc4 {[%clk 0:02:11.2]}
47. Kf3 {[%clk 0:00:17.7]} 47... Kb5 {[%clk 0:02:05.9]} 48. Ke3 {[%clk
0:00:17.9]} 48... Kb4 {[%clk 0:02:07.4]} 49. Kd2 {[%clk 0:00:18.7]} 49... Kb3
{[%clk 0:02:09]} 50. Kc1 {[%clk 0:00:17]} 50... Kc3 {[%clk 0:02:10.3]} 51. d5
{[%clk 0:00:17.6]} 51... exd5 {[%clk 0:02:12.2]} 52. g5 {[%clk 0:00:18.9]} 52...
g6 {[%clk 0:02:12.3]} 53. f4 {[%clk 0:00:19.1]} 53... Kd4 {[%clk 0:02:13.8]} 54.
f5 {[%clk 0:00:17.1]} 54... Kxe5 {[%clk 0:02:14.8]} 0-1

[Event "*** Titled Tuesday Blitz"]
[Site "Chess.com"]
[Date "2019.07.02"]
[Round "8"]
[White "CMS13"]
[Black "nubair1198"]
[Result "0-1"]
[WhiteElo "1941"]
[BlackElo "2635"]
[TimeControl "180+2"]
[EndTime "14:48:05 PDT"]
[Termination "nubair1198 won by checkmate"]

1. e4 {[%clk 0:03:01.9]} 1... Nf6 {[%clk 0:02:44.5]} 2. Nc3 {[%clk 0:03:01.2]}
2... d5 {[%clk 0:02:45.2]} 3. e5 {[%clk 0:03:01.2]} 3... d4 {[%clk 0:02:46.7]}
4. exf6 {[%clk 0:03:00.3]} 4... dxc3 {[%clk 0:02:48.3]} 5. bxc3 {[%clk
0:03:01.3]} 5... exf6 {[%clk 0:02:48.4]} 6. Nf3 {[%clk 0:03:02.5]} 6... Bg4
{[%clk 0:02:48.5]} 7. Be2 {[%clk 0:03:03.3]} 7... Bd6 {[%clk 0:02:48.5]} 8. O-O
{[%clk 0:03:03.6]} 8... O-O {[%clk 0:02:50]} 9. d4 {[%clk 0:03:04.8]} 9... Re8
{[%clk 0:02:49.9]} 10. h3 {[%clk 0:03:05.5]} 10... Bh5 {[%clk 0:02:50.8]} 11.
Be3 {[%clk 0:03:03.1]} 11... c6 {[%clk 0:02:49.9]} 12. Rb1 {[%clk 0:03:03.1]}
12... Qc7 {[%clk 0:02:51.2]} 13. Nh4 {[%clk 0:02:46.7]} 13... Bxe2 {[%clk
0:02:40.5]} 14. Qxe2 {[%clk 0:02:47.5]} 14... g6 {[%clk 0:02:34.9]} 15. Qf3
{[%clk 0:02:30.5]} 15... Nd7 {[%clk 0:02:35.7]} 16. Rfe1 {[%clk 0:02:15.4]}
16... Kg7 {[%clk 0:02:23.7]} 17. Qg4 {[%clk 0:02:09.3]} 17... h5 {[%clk
0:02:17.9]} 18. Qd1 {[%clk 0:01:52.8]} 18... Re6 {[%clk 0:02:09.7]} 19. Qd3
{[%clk 0:01:49.2]} 19... Rae8 {[%clk 0:02:09.7]} 20. Nf3 {[%clk 0:01:49.8]}
20... a6 {[%clk 0:02:01.2]} 21. c4 {[%clk 0:01:49.2]} 21... Re4 {[%clk 0:01:51]}
22. Nd2 {[%clk 0:01:44.7]} 22... R4e7 {[%clk 0:01:46.4]} 23. c5 {[%clk
0:01:19.9]} 23... Bh2+ {[%clk 0:01:45.2]} 24. Kh1 {[%clk 0:01:19.6]} 24... Bf4
{[%clk 0:01:46.6]} 25. Nc4 {[%clk 0:01:12.4]} 25... Re4 {[%clk 0:01:38.8]} 26.
Red1 {[%clk 0:00:59.8]} 26... f5 {[%clk 0:01:36.9]} 27. Bxf4 {[%clk 0:00:56.8]}
27... Qxf4 {[%clk 0:01:37.4]} 28. Nd6 {[%clk 0:00:57]} 28... Qxf2 {[%clk
0:01:38.9]} 29. Nxe8+ {[%clk 0:00:55.3]} 29... Rxe8 {[%clk 0:01:39.2]} 30. Rxb7
{[%clk 0:00:54.4]} 30... Nf6 {[%clk 0:01:40.3]} 31. Qc4 {[%clk 0:00:50.2]} 31...
Nd5 {[%clk 0:01:35]} 32. Qf1 {[%clk 0:00:45.5]} 32... Qxc2 {[%clk 0:01:34.6]}
33. Re1 {[%clk 0:00:36.6]} 33... Re4 {[%clk 0:01:16.2]} 34. Rxe4 {[%clk
0:00:23.1]} 34... Qxe4 {[%clk 0:01:18.1]} 35. Qf2 {[%clk 0:00:21.5]} 35... h4
{[%clk 0:01:08.5]} 36. Ra7 {[%clk 0:00:19.6]} 36... Nf4 {[%clk 0:01:05.9]} 37.
Rxa6 {[%clk 0:00:16.7]} 37... Nxh3 {[%clk 0:01:07.3]} 38. Qf3 {[%clk 0:00:16.3]}
38... Qe1+ {[%clk 0:01:05.7]} 39. Kh2 {[%clk 0:00:17.3]} 39... Qg1+ {[%clk
0:01:06.3]} 40. Kxh3 {[%clk 0:00:18.6]} 40... Qh1# {[%clk 0:01:08]} 0-1

[Event "*** Titled Tuesday Blitz"]
[Site "Chess.com"]
[Date "2019.07.02"]
[Round "8"]
[White "warmoatmeal"]
[Black "doons21"]
[Result "0-1"]
[WhiteElo "1810"]
[BlackElo "2420"]
[TimeControl "180+2"]
[EndTime "14:48:06 PDT"]
[Termination "doons21 won by resignation"]

1. d4 {[%clk 0:03:01.9]} 1... Nf6 {[%clk 0:03:00.7]} 2. Nf3 {[%clk 0:03:02]}
2... g6 {[%clk 0:03:01.7]} 3. c4 {[%clk 0:03:02.9]} 3... Bg7 {[%clk 0:03:03.2]}
4. Nc3 {[%clk 0:03:04.4]} 4... O-O {[%clk 0:03:05.1]} 5. Bg5 {[%clk 0:03:05.9]}
5... d6 {[%clk 0:03:03.9]} 6. e3 {[%clk 0:03:07]} 6... c6 {[%clk 0:03:05.2]} 7.
Be2 {[%clk 0:03:08.1]} 7... Na6 {[%clk 0:03:06.3]} 8. O-O {[%clk 0:03:08.9]}
8... Nc7 {[%clk 0:03:07.9]} 9. Qc2 {[%clk 0:03:08.7]} 9... Ne6 {[%clk
0:03:08.2]} 10. Bh4 {[%clk 0:03:08.9]} 10... c5 {[%clk 0:02:59.2]} 11. Rfd1
{[%clk 0:03:06.3]} 11... cxd4 {[%clk 0:02:56.9]} 12. exd4 {[%clk 0:03:06.4]}
12... Nf4 {[%clk 0:02:52]} 13. Bf1 {[%clk 0:03:04.1]} 13... Bf5 {[%clk
0:02:21.2]} 14. Qd2 {[%clk 0:02:58.6]} 14... Ne6 {[%clk 0:02:19.6]} 15. d5
{[%clk 0:02:56.8]} 15... Nc5 {[%clk 0:02:19.5]} 16. Nd4 {[%clk 0:02:55.9]} 16...
Bg4 {[%clk 0:02:10.5]} 17. h3 {[%clk 0:02:53.4]} 17... Bxd1 {[%clk 0:02:10.8]}
18. Rxd1 {[%clk 0:02:51.9]} 18... Re8 {[%clk 0:02:07.5]} 19. b4 {[%clk
0:02:52.1]} 19... Nce4 {[%clk 0:02:07.7]} 20. Nxe4 {[%clk 0:02:50.5]} 20... Nxe4
{[%clk 0:02:09.6]} 21. Qe3 {[%clk 0:02:50.5]} 21... Nf6 {[%clk 0:02:10.6]} 22.
Bg3 {[%clk 0:02:45.2]} 22... Rc8 {[%clk 0:02:09.5]} 23. Nb5 {[%clk 0:02:41.2]}
23... a6 {[%clk 0:02:09.9]} 24. Nd4 {[%clk 0:02:40.3]} 24... Qb6 {[%clk
0:02:07.2]} 25. a3 {[%clk 0:02:38.2]} 25... Nd7 {[%clk 0:02:00.6]} 26. Be2
{[%clk 0:02:26.7]} 26... Ne5 {[%clk 0:01:59.2]} 27. Bxe5 {[%clk 0:02:17.9]}
27... Bxe5 {[%clk 0:01:57.6]} 28. Bg4 {[%clk 0:02:17.8]} 28... Rxc4 {[%clk
0:01:54.9]} 29. Nf5 {[%clk 0:01:44.9]} 29... Qxe3 {[%clk 0:01:54.2]} 30. Nxe3
{[%clk 0:01:45.2]} 30... Rc3 {[%clk 0:01:55.3]} 31. a4 {[%clk 0:01:45.7]} 31...
Bf4 {[%clk 0:01:51.8]} 32. Nf1 {[%clk 0:01:39.9]} 32... f5 {[%clk 0:01:48.3]}
33. Be2 {[%clk 0:01:32.6]} 33... Rec8 {[%clk 0:01:48.7]} 34. g3 {[%clk
0:01:31.3]} 34... Bh6 {[%clk 0:01:49.1]} 35. b5 {[%clk 0:01:29.1]} 35... a5
{[%clk 0:01:48.6]} 36. b6 {[%clk 0:01:29.7]} 36... Rc1 {[%clk 0:01:48.6]} 37.
Rd4 {[%clk 0:01:25.7]} 37... Re1 {[%clk 0:01:47.3]} 38. Bb5 {[%clk 0:01:25.1]}
38... Bg7 {[%clk 0:01:44.6]} 39. Rd3 {[%clk 0:01:22.2]} 39... Rc3 {[%clk
0:01:43.2]} 40. Rxc3 {[%clk 0:01:15.1]} 40... Bxc3 {[%clk 0:01:43.4]} 41. Bc6
{[%clk 0:01:13.2]} 41... Bd4 {[%clk 0:01:41.1]} 42. Bxb7 {[%clk 0:01:13.9]}
42... Bxb6 {[%clk 0:01:42]} 43. Bc6 {[%clk 0:01:14.6]} 43... Rc1 {[%clk
0:01:40.4]} 44. Kg2 {[%clk 0:01:10.6]} 44... Rc2 {[%clk 0:01:39.8]} 45. Nh2
{[%clk 0:00:48.1]} 45... Rxf2+ {[%clk 0:01:35.5]} 46. Kh1 {[%clk 0:00:47.7]}
46... Kf8 {[%clk 0:01:34]} 47. Kg1 {[%clk 0:00:44.9]} 47... Rc2+ {[%clk
0:01:32.4]} 48. Kh1 {[%clk 0:00:45]} 48... e5 {[%clk 0:01:33.9]} 49. Nf3 {[%clk
0:00:43]} 49... e4 {[%clk 0:01:33.8]} 50. Ng5 {[%clk 0:00:42.8]} 50... e3 {[%clk
0:01:33.4]} 0-1

[Event "*** Titled Tuesday Blitz"]
[Site "Chess.com"]
[Date "2019.07.02"]
[Round "8"]
[White "Jospem"]
[Black "Yoshkinkot"]
[Result "1-0"]
[WhiteElo "2850"]
[BlackElo "2542"]
[TimeControl "180+2"]
[EndTime "14:48:08 PDT"]
[Termination "Jospem won by resignation"]

1. a3 {[%clk 0:03:01.9]} 1... Nf6 {[%clk 0:02:58.6]} 2. h3 {[%clk 0:03:03.1]}
2... d5 {[%clk 0:02:59.3]} 3. b3 {[%clk 0:03:05]} 3... e5 {[%clk 0:02:59.5]} 4.
Bb2 {[%clk 0:03:06.9]} 4... Bd6 {[%clk 0:03:01.1]} 5. e3 {[%clk 0:03:06.9]} 5...
Bf5 {[%clk 0:02:54.4]} 6. d3 {[%clk 0:03:08.8]} 6... h6 {[%clk 0:02:55]} 7. g3
{[%clk 0:03:10.7]} 7... c6 {[%clk 0:02:53.5]} 8. Bg2 {[%clk 0:03:10.7]} 8... O-O
{[%clk 0:02:54.9]} 9. Nd2 {[%clk 0:03:08.9]} 9... Re8 {[%clk 0:02:55.3]} 10. Ne2
{[%clk 0:03:10.8]} 10... Nbd7 {[%clk 0:02:56.4]} 11. O-O {[%clk 0:03:08.2]}
11... a5 {[%clk 0:02:57.5]} 12. Kh2 {[%clk 0:03:07.8]} 12... Bh7 {[%clk
0:02:55.3]} 13. e4 {[%clk 0:02:53.9]} 13... Nc5 {[%clk 0:02:51.7]} 14. Nc3
{[%clk 0:02:49.1]} 14... dxe4 {[%clk 0:02:35.9]} 15. dxe4 {[%clk 0:02:43.1]}
15... b5 {[%clk 0:02:29.1]} 16. Re1 {[%clk 0:02:30.5]} 16... a4 {[%clk
0:02:21.8]} 17. b4 {[%clk 0:02:24.8]} 17... Ne6 {[%clk 0:02:20.6]} 18. Ne2
{[%clk 0:02:26.3]} 18... c5 {[%clk 0:02:15.6]} 19. c4 {[%clk 0:02:17.2]} 19...
cxb4 {[%clk 0:01:59.7]} 20. cxb5 {[%clk 0:02:17.4]} 20... b3 {[%clk 0:01:41.6]}
21. Nc4 {[%clk 0:02:17.9]} 21... Bc5 {[%clk 0:01:41.7]} 22. Bxe5 {[%clk
0:02:12]} 22... Nxe4 {[%clk 0:01:28.2]} 23. f4 {[%clk 0:02:00.6]} 23... f6
{[%clk 0:01:06.7]} 24. Bb2 {[%clk 0:01:49.6]} 24... Rb8 {[%clk 0:00:58.9]} 25.
Nc3 {[%clk 0:01:42]} 25... Nxc3 {[%clk 0:00:44]} 26. Bxc3 {[%clk 0:01:43.9]}
26... Bd3 {[%clk 0:00:25.7]} 27. Na5 {[%clk 0:01:18]} 27... Rxb5 {[%clk
0:00:15.3]} 28. Bc6 {[%clk 0:01:10.3]} 28... Rxa5 {[%clk 0:00:04.5]} 29. Bxa5
{[%clk 0:01:07.3]} 29... Qxa5 {[%clk 0:00:04.2]} 30. Qxd3 {[%clk 0:01:08.4]}
30... Rd8 {[%clk 0:00:03.8]} 31. Qc4 {[%clk 0:01:02.6]} 31... Qd2+ {[%clk
0:00:04.8]} 32. Re2 {[%clk 0:01:02.2]} 32... Qd4 {[%clk 0:00:03.1]} 33. Qxe6+
{[%clk 0:01:03.3]} 33... Kh7 {[%clk 0:00:03.8]} 34. Be4+ {[%clk 0:01:03.3]}
34... Kh8 {[%clk 0:00:04.7]} 35. Rf1 {[%clk 0:01:03.6]} 35... b2 {[%clk
0:00:05.4]} 36. Qf5 {[%clk 0:01:04.9]} 36... Kg8 {[%clk 0:00:06.5]} 37. Qh7+
{[%clk 0:01:06.1]} 37... Kf7 {[%clk 0:00:07.1]} 38. Bg6+ {[%clk 0:01:07.5]} 1-0

[Event "*** Titled Tuesday Blitz"]
[Site "Chess.com"]
[Date "2019.07.02"]
[Round "8"]
[White "BakaPG"]
[Black "chesstatour"]
[Result "1-0"]
[WhiteElo "2707"]
[BlackElo "2025"]
[TimeControl "180+2"]
[EndTime "14:48:08 PDT"]
[Termination "BakaPG won on time"]

1. e4 {[%clk 0:03:01.9]} 1... c6 {[%clk 0:03:00.5]} 2. d4 {[%clk 0:03:00.8]}
2... d5 {[%clk 0:03:02.4]} 3. Nd2 {[%clk 0:03:02]} 3... dxe4 {[%clk 0:03:03.2]}
4. Nxe4 {[%clk 0:03:03.1]} 4... Nf6 {[%clk 0:03:05.1]} 5. Nxf6+ {[%clk
0:03:03.2]} 5... gxf6 {[%clk 0:03:07]} 6. Qd3 {[%clk 0:03:02.6]} 6... Qd5 {[%clk
0:02:47.6]} 7. c4 {[%clk 0:02:59.2]} 7... Qf5 {[%clk 0:02:47.9]} 8. Qb3 {[%clk
0:02:53.1]} 8... Qe4+ {[%clk 0:02:31.6]} 9. Be3 {[%clk 0:02:52]} 9... Bh6 {[%clk
0:02:19.3]} 10. Nf3 {[%clk 0:02:49.4]} 10... Bxe3 {[%clk 0:02:13.7]} 11. Qxe3
{[%clk 0:02:44]} 11... Qxe3+ {[%clk 0:02:12]} 12. fxe3 {[%clk 0:02:44.9]} 12...
Bf5 {[%clk 0:02:11]} 13. Be2 {[%clk 0:02:39.2]} 13... Rg8 {[%clk 0:02:05.7]} 14.
O-O {[%clk 0:02:36.7]} 14... Nd7 {[%clk 0:02:01.1]} 15. g3 {[%clk 0:02:32.4]}
15... O-O-O {[%clk 0:01:59.9]} 16. b4 {[%clk 0:02:30.5]} 16... Be4 {[%clk
0:01:42.3]} 17. a4 {[%clk 0:02:27.8]} 17... b6 {[%clk 0:01:33.3]} 18. a5 {[%clk
0:02:27.7]} 18... Kb7 {[%clk 0:01:32.2]} 19. Nd2 {[%clk 0:02:24.2]} 19... Bg6
{[%clk 0:01:24.3]} 20. Bf3 {[%clk 0:02:24.3]} 20... e5 {[%clk 0:00:59.6]} 21.
axb6 {[%clk 0:02:20.1]} 21... axb6 {[%clk 0:00:41.6]} 22. d5 {[%clk 0:02:11.7]}
22... e4 {[%clk 0:00:29.9]} 23. dxc6+ {[%clk 0:02:07]} 23... Kxc6 {[%clk
0:00:28]} 24. Nxe4 {[%clk 0:02:06.4]} 24... Ne5 {[%clk 0:00:17.5]} 25. Bg2
{[%clk 0:02:07.1]} 25... Bxe4 {[%clk 0:00:10.6]} 26. Bxe4+ {[%clk 0:02:07.4]}
26... Kd6 {[%clk 0:00:12.1]} 27. Rxf6+ {[%clk 0:02:07.4]} 27... Ke7 {[%clk
0:00:12.6]} 28. Rxb6 {[%clk 0:02:06.3]} 28... Nxc4 {[%clk 0:00:12.2]} 29. Rb7+
{[%clk 0:02:04]} 29... Rd7 {[%clk 0:00:11.9]} 30. Rc1 {[%clk 0:01:45.5]} 30...
Rxb7 {[%clk 0:00:02.4]} 31. Bxb7 {[%clk 0:01:45.3]} 31... Nd6 {[%clk 0:00:03.6]}
32. Bd5 {[%clk 0:01:36.5]} 32... Kf6 {[%clk 0:00:04]} 33. Rc6 {[%clk 0:01:30.8]}
33... Ke5 {[%clk 0:00:04.7]} 34. Rc5 {[%clk 0:01:31.8]} 34... Kf6 {[%clk
0:00:04.1]} 35. b5 {[%clk 0:01:29.8]} 35... Rb8 {[%clk 0:00:04.6]} 36. Bc6
{[%clk 0:01:30.6]} 36... Ke7 {[%clk 0:00:03.6]} 37. Rh5 {[%clk 0:01:28.6]} 37...
Rh8 {[%clk 0:00:03.1]} 38. Kf2 {[%clk 0:01:26.3]} 38... h6 {[%clk 0:00:04.2]}
39. g4 {[%clk 0:01:26.8]} 39... Kf6 {[%clk 0:00:03.3]} 40. h4 {[%clk 0:01:24.4]}
40... Kg7 {[%clk 0:00:02.8]} 41. Kf3 {[%clk 0:01:23.1]} 41... Rb8 {[%clk
0:00:02.5]} 42. Rd5 {[%clk 0:01:23.2]} 1-0

[Event "*** Titled Tuesday Blitz"]
[Site "Chess.com"]
[Date "2019.07.02"]
[Round "8"]
[White "Chesstrainer1"]
[Black "theblitzchamp"]
[Result "1-0"]
[WhiteElo "2456"]
[BlackElo "2610"]
[TimeControl "180+2"]
[EndTime "14:48:08 PDT"]
[Termination "Chesstrainer1 won by checkmate"]

1. d4 {[%clk 0:03:01.9]} 1... Nf6 {[%clk 0:03:01.1]} 2. c4 {[%clk 0:03:02.7]}
2... d6 {[%clk 0:03:02.5]} 3. Nf3 {[%clk 0:03:01.4]} 3... g6 {[%clk 0:03:03.3]}
4. Nc3 {[%clk 0:03:02.3]} 4... Bg7 {[%clk 0:03:05]} 5. e4 {[%clk 0:03:03.7]}
5... O-O {[%clk 0:03:06.9]} 6. Be2 {[%clk 0:03:05]} 6... e5 {[%clk 0:03:07.1]}
7. d5 {[%clk 0:03:04.5]} 7... a5 {[%clk 0:03:08]} 8. Bg5 {[%clk 0:03:04.5]} 8...
Na6 {[%clk 0:03:06.4]} 9. Nd2 {[%clk 0:03:04.7]} 9... Qe8 {[%clk 0:03:07.8]} 10.
h4 {[%clk 0:03:01.9]} 10... Nd7 {[%clk 0:03:07.6]} 11. h5 {[%clk 0:02:59.8]}
11... f6 {[%clk 0:03:08]} 12. Be3 {[%clk 0:02:59.9]} 12... f5 {[%clk 0:03:07]}
13. exf5 {[%clk 0:02:45]} 13... gxf5 {[%clk 0:03:07.8]} 14. f3 {[%clk
0:02:46.3]} 14... h6 {[%clk 0:03:04]} 15. g4 {[%clk 0:02:34.7]} 15... Ndc5
{[%clk 0:02:49.7]} 16. gxf5 {[%clk 0:02:18.2]} 16... Bxf5 {[%clk 0:02:50.2]} 17.
Nde4 {[%clk 0:02:19.3]} 17... Nxe4 {[%clk 0:02:44.4]} 18. fxe4 {[%clk
0:01:53.5]} 18... Bh7 {[%clk 0:02:45.1]} 19. Qc2 {[%clk 0:01:53.1]} 19... Nc5
{[%clk 0:02:34.6]} 20. O-O-O {[%clk 0:01:51.4]} 20... Kh8 {[%clk 0:02:35.8]} 21.
Rdg1 {[%clk 0:01:38.2]} 21... Qd7 {[%clk 0:02:31.8]} 22. Bg4 {[%clk 0:01:38.1]}
22... Qe7 {[%clk 0:02:29.9]} 23. Bf5 {[%clk 0:01:34.6]} 23... Rf6 {[%clk
0:02:22]} 24. Rg6 {[%clk 0:01:17.9]} 24... Raf8 {[%clk 0:02:16.5]} 25. Qd2
{[%clk 0:01:08.2]} 25... Rxf5 {[%clk 0:01:56.8]} 26. exf5 {[%clk 0:01:08.7]}
26... Rxf5 {[%clk 0:01:57.3]} 27. Bxh6 {[%clk 0:01:06.9]} 27... Bxg6 {[%clk
0:01:36.1]} 28. hxg6 {[%clk 0:01:03]} 28... Kg8 {[%clk 0:01:35.8]} 29. Be3
{[%clk 0:00:44.6]} 29... Qf6 {[%clk 0:01:31.9]} 30. Qg2 {[%clk 0:00:32]} 30...
Nd3+ {[%clk 0:01:32.9]} 31. Kc2 {[%clk 0:00:29.4]} 31... Nf4 {[%clk 0:01:32.4]}
32. Bxf4 {[%clk 0:00:30.3]} 32... exf4 {[%clk 0:01:33.4]} 33. Re1 {[%clk
0:00:22.7]} 33... Re5 {[%clk 0:01:29.3]} 34. Rxe5 {[%clk 0:00:18.9]} 34... Qxe5
{[%clk 0:01:29.5]} 35. Qh3 {[%clk 0:00:18.2]} 35... Bf8 {[%clk 0:00:51.2]} 36.
Qh7# {[%clk 0:00:13.5]} 1-0

[Event "*** Titled Tuesday Blitz"]
[Site "Chess.com"]
[Date "2019.07.02"]
[Round "8"]
[White "LarissaSteenbekkers"]
[Black "ChainsOfFantasia"]
[Result "0-1"]
[WhiteElo "1979"]
[BlackElo "2443"]
[TimeControl "180+2"]
[EndTime "14:48:18 PDT"]
[Termination "ChainsOfFantasia won on time"]

1. e4 {[%clk 0:02:41.9]} 1... e6 {[%clk 0:02:59.5]} 2. d4 {[%clk 0:02:41]} 2...
d5 {[%clk 0:03:01.4]} 3. Nd2 {[%clk 0:02:37.3]} 3... c5 {[%clk 0:03:01.1]} 4.
exd5 {[%clk 0:02:36.8]} 4... Qxd5 {[%clk 0:03:02.7]} 5. Ngf3 {[%clk 0:02:36.1]}
5... cxd4 {[%clk 0:03:04]} 6. Bc4 {[%clk 0:02:36]} 6... Qd7 {[%clk 0:03:05.6]}
7. Nb3 {[%clk 0:02:08.4]} 7... Nc6 {[%clk 0:03:06.7]} 8. Nbxd4 {[%clk
0:02:08.5]} 8... a6 {[%clk 0:03:05.5]} 9. O-O {[%clk 0:02:06.1]} 9... Nxd4
{[%clk 0:03:05.2]} 10. Nxd4 {[%clk 0:02:04]} 10... Qc7 {[%clk 0:03:06.2]} 11.
Qe2 {[%clk 0:02:00.4]} 11... Bd6 {[%clk 0:03:06.6]} 12. Nf5 {[%clk 0:01:36.2]}
12... Bxh2+ {[%clk 0:03:05.2]} 13. Kh1 {[%clk 0:01:34.3]} 13... Be5 {[%clk
0:03:07.1]} 14. f4 {[%clk 0:01:29.6]} 14... exf5 {[%clk 0:02:59.4]} 15. fxe5
{[%clk 0:01:27.1]} 15... Be6 {[%clk 0:02:59.9]} 16. Bd3 {[%clk 0:01:25.3]} 16...
Ne7 {[%clk 0:02:59.1]} 17. Bg5 {[%clk 0:01:24]} 17... g6 {[%clk 0:02:49.9]} 18.
Bf6 {[%clk 0:01:22.8]} 18... Rg8 {[%clk 0:02:48.6]} 19. Rad1 {[%clk 0:01:18.4]}
19... O-O-O {[%clk 0:02:49]} 20. Bxa6 {[%clk 0:01:11.7]} 20... bxa6 {[%clk
0:02:32.4]} 21. Qxa6+ {[%clk 0:01:09.4]} 21... Kb8 {[%clk 0:02:33.7]} 22. Rd6
{[%clk 0:01:07.5]} 22... Nc8 {[%clk 0:01:40.3]} 23. Rc6 {[%clk 0:01:09.4]} 23...
Qb7 {[%clk 0:01:36.8]} 24. Rf3 {[%clk 0:00:51.9]} 24... Qxa6 {[%clk 0:01:31.2]}
25. Rxa6 {[%clk 0:00:41.1]} 25... Rd1+ {[%clk 0:01:32.8]} 26. Kh2 {[%clk
0:00:39.6]} 26... Kb7 {[%clk 0:01:28.3]} 27. Rfa3 {[%clk 0:00:35.1]} 27... g5
{[%clk 0:01:15.2]} 28. b3 {[%clk 0:00:20.8]} 28... Rg6 {[%clk 0:01:12.7]} 29.
Kg3 {[%clk 0:00:18.8]} 29... f4+ {[%clk 0:01:12.8]} 30. Kf2 {[%clk 0:00:19.3]}
30... g4 {[%clk 0:01:12.7]} 31. Ke2 {[%clk 0:00:18.6]} 31... Rg1 {[%clk
0:01:04.6]} 32. Ra8 {[%clk 0:00:16.8]} 32... Rxg2+ {[%clk 0:01:04.1]} 33. Kd3
{[%clk 0:00:16.2]} 33... Bf5+ {[%clk 0:01:03.6]} 34. Kd4 {[%clk 0:00:15.5]}
34... Rf2 {[%clk 0:01:04.9]} 35. Kc5 {[%clk 0:00:13.5]} 35... Rxc2+ {[%clk
0:01:05]} 36. Kb4 {[%clk 0:00:13.2]} 36... g3 {[%clk 0:01:04.5]} 37. Be7 {[%clk
0:00:12.8]} 37... Rb6+ {[%clk 0:01:02.9]} 38. Ka5 {[%clk 0:00:10.4]} 38... Kxa8
{[%clk 0:01:02.5]} 0-1